Cogmind - Beta 10.2 @@@ ROGUE MODE // 2021.07.24 @ 17:53:57 Player: Plexion Result: Destroyed self with EMP Blaster Performance ------------- Evolutions (1) 500 Regions Visited (6) 1200 Robots Destroyed (52) 260 Value Destroyed (1084) 1084 Prototype IDs (29) 580 Alien Tech Used (0) 0 Bonus (300) 300 TOTAL SCORE: 3924 Bonus ------- Aligned with FarCom 300 Cogmind --------- Core Integrity 0/400 Matter 266/300 Energy 20/170 System Corruption 0% Temperature Cool (0) Movement Treading (180) Ox1 Location -8/Mines Parts ------- > --- POWER (1) -------- Makeshift Power Source > --- PROPULSION (2) --- Light Treads Light Treads > --- UTILITY (4) ------ Large Storage Unit Large Storage Unit 8R-AWN's Armor/EX > --- WEAPON (2) ------- EMP Blaster Mining Claw > --- INVENTORY (16) --- Light Treads Advanced Myomer Leg Advanced Myomer Leg Medium Storage Unit High-capacity Matter Pod (200) Advanced Matter Compressor Experimental Targeting Computer Advanced Weapon Cycler Makeshift Armor Plating System Purifier Light Assault Rifle Light Assault Rifle 8R-AWN's Boregun Rocket Launcher Peak State ------------ > --- POWER ------------ (None) > --- PROPULSION ------- Advanced Myomer Leg Advanced Myomer Leg > --- UTILITY ---------- Large Storage Unit Gravity Neutralizing Apparatus 8R-AWN's Armor/EX > --- WEAPON ----------- Light Assault Rifle 8R-AWN's Boregun > --- INVENTORY -------- Large Storage Unit Advanced Weapon Cycler Mining Claw [Rating: 55] Favorites ----------- Power Ion Engine Engine Ion Engine Propulsion Light Treads Treads Light Treads Leg Advanced Myomer Leg Utility Large Storage Unit Device Heat Sink Storage Large Storage Unit Processor Armor Integrity Analyzer Protection Light Armor Plating Weapon Heavy EM Pulse Gun Energy Gun Heavy EM Pulse Gun Ballistic Gun Assault Rifle Launcher Rocket Launcher Slashing Weapon Mining Claw Build | -11 -10 -10 -9 -9 -9 -8 ------- Run | Scr Mat Min Mat Min Exi Min Slots Evolved 2 | . . . 2 . . . Power . | . . . . . . . Propulsion . | . . . . . . . Utility 2 | . . . 2 . . . Weapon . | . . . . . . . Parts Attached 69 | 7 11 . 9 2 33 7 Power 7 | 1 2 . 1 . 2 1 Engine 7 | 1 2 . 1 . 2 1 Core . | . . . . . . . Reactor . | . . . . . . . Propulsion 15 | 2 3 . 1 . 8 1 Treads 13 | 2 3 . 1 . 6 1 Leg 2 | . . . . . 2 . Wheel . | . . . . . . . Hover . | . . . . . . . Flight . | . . . . . . . Utility 16 | 1 3 . 3 . 7 2 Device 3 | . 1 . . . 2 . Storage 4 | 1 2 . . . 1 . Processor 2 | . . . . . 1 1 Hackware . | . . . . . . . Protection 7 | . . . 3 . 3 1 Artifact . | . . . . . . . Weapon 31 | 3 3 . 4 2 16 3 Energy Gun 10 | . 3 . 2 1 4 . Energy Cannon . | . . . . . . . Ballistic Gun 14 | 3 . . 1 . 9 1 Ballistic Cannon . | . . . . . . . Launcher 5 | . . . 1 1 2 1 Special Weapon . | . . . . . . . Impact Weapon . | . . . . . . . Slashing Weapon 2 | . . . . . 1 1 Piercing Weapon . | . . . . . . . Special Melee Weapon . | . . . . . . . Unidentified Prototypes 6 | . . . . . 5 1 Parts Lost 21 | . 1 . 2 . 16 2 Power 4 | . 1 . . . 2 1 Propulsion 5 | . . . . . 4 1 Utility 3 | . . . . . 3 . Weapon 9 | . . . 2 . 7 . Highest Loss Streak 16 | . 1 . 1 . 16 2 Average Slot Usage (%) 93 | . 95 100 93 100 91 87 Engine 10 | . 13 14 11 11 9 11 Treads 22 | . 27 28 22 22 18 22 Device 1 | . 6 . . . . . Storage 21 | . 17 28 22 22 20 22 Protection 11 | . . . 16 22 16 10 Energy Gun 10 | . 13 28 15 10 6 . Ballistic Gun 11 | . 14 . 5 11 14 18 Naked Turns . | . . . . . . . Heaviest Build 71 | 10 43 43 50 50 71 68 Greatest Support 60 | 40 40 40 40 40 60 40 Greatest Overweight (x) 6 | . 1 1 1 1 6 1 Average Overweight (x) . | . . 1 . 1 . . Largest Inventory Capacity 16 | 6 16 16 16 16 16 16 Average Capacity 14 | 5 8 16 16 16 15 16 Most Carried 16 | 2 9 10 14 16 16 16 Average Carried 10 | 1 3 9 11 15 12 14 Final Capacity 16 | 6 16 16 16 16 16 16 Final Carried 16 | 2 8 10 14 16 15 14 Class Distribution -------------------- 58% | Scavenger-Mutant 41% | Mutant Dominant Class ---------------- Mutant | -10/Materials Mutant | -10/Mines Mutant | -9/Materials Scavenger-Mutant | -9/Mines Scavenger-Mutant | -9/Exiles Scavenger-Mutant | -8/Mines Resources | -11 -10 -10 -9 -9 -9 -8 ----------- Run | Scr Mat Min Mat Min Exi Min Matter Collected 2004 | 209 266 20 145 36 1184 144 Remotely . | . . . . . . . Salvage Created 2215 | . 434 172 699 49 632 229 Parts 183 | . 24 10 47 6 87 9 Haulers Intercepted 2 | . 1 . 1 . . . Recyclers Shooed 2 | . 1 . 1 . . . Parts Field Recycled . | . . . . . . . Retrieved Matter . | . . . . . . . Parts Self-Destructed . | . . . . . . . Prevented . | . . . . . . . Kills | -11 -10 -10 -9 -9 -9 -8 ------- Run | Scr Mat Min Mat Min Exi Min Combat Hostiles Destroyed 36 | . 11 2 11 3 6 3 Melee 1 | . . . . . . 1 Guns 21 | . 11 1 8 . 1 . AOE 13 | . . 1 2 3 5 2 Classes Destroyed 11 | . 3 3 2 . 3 . Worker 1 | . . 1 . . . . Builder 5 | . . 1 4 . . . Hauler 2 | . 1 . 1 . . . Recycler 1 | . . 1 . . . . Turret 1 | . . . . . 1 . Watcher 1 | . . . 1 . . . Swarmer 6 | . 3 . . 3 . . Grunt 20 | . 8 2 8 . . 2 Sentry 3 | . . . 3 . . . Zionite 8 | . . . . . 8 . Assembled 5 | . . . . . 5 . Best Kill Streak 10 | . 3 4 10 3 8 2 Combat Bots Only 5 | . 3 2 4 3 5 2 Max Kills in Single Turn 5 | . 1 1 3 2 5 1 Gunslinging . | . . . . . . . Exploded 5 | . . 1 2 2 5 1 Melee 1 | . . . . . . 1 Uniques/NPCs Destroyed 5 | . . . . . 4 1 8R-AWN (-9/Exiles) EX-HEX (-9/Exiles) EX-DEC (-9/Exiles) EX-BIN (-9/Exiles) P1-3CE (-8/Mines) Combat | -11 -10 -10 -9 -9 -9 -8 -------- Run | Scr Mat Min Mat Min Exi Min Damage Taken 3332 | . 484 28 370 21 1651 778 Core 446 | . 33 . 25 . 259 129 Absorbed by Shields . | . . . . . . . Core Remaining (%) 93 | 100 . 86 . . . . Volleys Fired 219 | . 38 5 30 3 125 18 Largest 2 | . 2 2 2 1 2 2 Hottest 90 | . 90 90 90 33 90 50 Shots Fired 335 | . 76 10 52 3 164 30 Gun 316 | . 76 10 45 . 161 24 Cannon . | . . . . . . . Launcher 19 | . . . 7 3 3 6 Special . | . . . . . . . Kinetic 245 | . 60 . 11 . 150 24 Thermal . | . . . . . . . Explosive 3 | . . . . . 3 . Electromagnetic 87 | . 16 10 41 3 11 6 Robot Hit Streak 18 | . 10 4 14 4 18 9 Robot Miss Streak 4 | . 2 2 4 1 4 3 Penetration Max 1 | . . . . . 1 . Secondary Targets . | . . . . . . . Shots Hit Robots 256 | . 51 6 34 2 126 37 Core Hits 108 | . 17 6 24 3 47 11 Critical Hits 27 | . 1 . . . 21 5 Critical Kills 7 | . . . . . 7 . Critical Parts Destroyed 16 | . 1 . . . 12 3 Melee Attacks 19 | . . . . . 4 15 Impact . | . . . . . . . Slashing 19 | . . . . . 4 15 Piercing . | . . . . . . . Sneak Attacks . | . . . . . . . Combat Hostiles . | . . . . . . . Follow-up Attacks . | . . . . . . . Damage Inflicted 4497 | . 566 212 891 72 1912 844 Guns 2924 | . 566 126 488 . 1491 253 Cannons . | . . . . . . . Explosions 1162 | . . 78 395 72 347 270 Melee 395 | . . . . . 74 321 Ramming 16 | . . 8 8 . . . Kinetic 2190 | . 397 . 57 . 1483 253 Thermal 185 | . . 78 107 . . . Explosive 347 | . . . . . 347 . Electromagnetic 1364 | . 169 126 719 72 8 270 Impact . | . . . . . . . Slashing 395 | . . . . . 74 321 Piercing . | . . . . . . . Highest Corruption 1 | . . . 1 1 1 . Average Corruption 1 | . . . 1 1 1 . Corruption Purged 1 | . . . . . 1 . Effects 9 | . . . 1 1 7 . Message Errors 5 | . . . 1 1 3 . Energy Discharges 1 | . . . . . 1 . Data Loss (minor) 2 | . . . . . 2 . Targeting Errors 1 | . . . . . 1 . Overload Shots . | . . . . . . . Overflow Damage 36 | . . . 7 . 29 . Projectiles . | . . . . . . . Explosions 36 | . . . 7 . 29 . Melee . | . . . . . . . Knockbacks . | . . . . . . . Impact . | . . . . . . . Kinetic . | . . . . . . . Secondary . | . . . . . . . Self-Inflicted Damage 98 | . . . 7 5 44 42 Shots 7 | . . . 1 2 1 3 Rammed 3 | . . 2 1 . . . Targets Rammed 4 | . . 3 1 . . . Kicked . | . . . . . . . Crushed 1 | . . 1 . . . . Highest Temperature 121 | . 30 78 121 . 42 16 Average Temperature 31 | . 12 33 46 . 17 6 Received Heat Transfer 330 | . 195 18 108 . . 9 Siege Activations . | . . . . . . . Robots Corrupted 1 | . . . 1 . . . Combat Hostiles 1 | . . . 1 . . . Parts Fried 7 | . 1 1 3 . . 2 Impact Corruptions . | . . . . . . . Robots Melted . | . . . . . . . Combat Hostiles . | . . . . . . . Parts Melted 1 | . . . 1 . . . Heat Transferred 300 | . . 100 200 . . . Parts Sabotaged . | . . . . . . . Parts Stolen . | . . . . . . . Parts Stripped . | . . . . . . . Power Chain Reactions 4 | . . 1 2 1 . . Missiles Intercepted . | . . . . . . . Alert | -11 -10 -10 -9 -9 -9 -8 ------- Run | Scr Mat Min Mat Min Exi Min Peak Influence 177 | . 177 65 157 146 . 55 Initial 61 | . . . . 61 . . Average 53 | . 64 53 56 144 . . Maximum Alert Level . | . . . . . . . Low Security (%) 100 | 100 100 100 100 100 . 100 Level 1 . | . . . . . . . Level 2 . | . . . . . . . Level 3 . | . . . . . . . Level 4 . | . . . . . . . Level 5 . | . . . . . . . High Security . | . . . . . . . Max Security . | . . . . . . . Squads Dispatched 6 | . 4 . 2 . . . Investigation 2 | . 2 . . . . . Extermination . | . . . . . . . Reinforcement 4 | . 2 . 2 . . . Assault . | . . . . . . . Garrison . | . . . . . . . Intercept . | . . . . . . . Construction Impeded . | . . . . . . . Haulers Reinforced . | . . . . . . . Stealth | -11 -10 -10 -9 -9 -9 -8 --------- Run | Scr Mat Min Mat Min Exi Min Distress Signals 3 | . . . 3 . . . Communications Jammed . | . . . . . . . Distress Signals . | . . . . . . . Times Spotted 68 | . 15 2 25 3 19 4 Peak Tracking Total 9 | . 3 2 8 3 9 3 Tactical Retreats 5 | . . . . . 4 1 Traps | -11 -10 -10 -9 -9 -9 -8 ------- Run | Scr Mat Min Mat Min Exi Min Traps Triggered 3 | . 3 . . . . . Indirectly . | . . . . . . . Trap Hack Attempts . | . . . . . . . Triggered . | . . . . . . . Disarmed 10 | . 10 . . . . . Reprogrammed . | . . . . . . . Reused . | . . . . . . . Traps Extracted . | . . . . . . . Installed . | . . . . . . . Triggered . | . . . . . . . Exploded 3 | . . . . . 3 . Machines | -11 -10 -10 -9 -9 -9 -8 ---------- Run | Scr Mat Min Mat Min Exi Min Machines Disabled 16 | . . . 2 1 13 . Max in Single Turn 2 | . . . 1 1 2 . Machines Sabotaged . | . . . . . . . Garrisons Compromised . | . . . . . . . Overloaded Fab Kills . | . . . . . . . Fab Network Shutdowns . | . . . . . . . Hacking | -11 -10 -10 -9 -9 -9 -8 --------- Run | Scr Mat Min Mat Min Exi Min Machines Accessed 9 | . 5 . 2 . 2 . Terminals 7 | . 5 . 2 . . . Fabricators . | . . . . . . . Repair Stations . | . . . . . . . Recycling Units . | . . . . . . . Scanalyzers . | . . . . . . . Garrison Access . | . . . . . . . Total Hacks 26 | . 12 . 12 . 2 . Successful 17 | . 9 . 6 . 2 . Failed 9 | . 3 . 6 . . . Catastrophic 1 | . . . 1 . . . Database Lockouts . | . . . . . . . Manual 21 | . 12 . 8 . 1 . Terminals 24 | . 12 . 12 . . . Fabricators . | . . . . . . . Repair Stations . | . . . . . . . Recycling Units . | . . . . . . . Scanalyzers . | . . . . . . . Garrison Access . | . . . . . . . Terminal Hacks 11 | . 5 . 4 . 2 . Record 1 | . . . . . 1 . Part Schematic 1 | . 1 . . . . . Robot Analysis 3 | . 2 . 1 . . . Unreport Threat 2 | . . . 2 . . . Disarm Traps 2 | . 2 . . . . . Zone Layout 1 | . . . 1 . . . EX-Prototype ID Bank 1 | . . . . . 1 . Fabricator Hacks . | . . . . . . . Repair Station Hacks . | . . . . . . . Recycling Unit Hacks . | . . . . . . . Scanalyzer . | . . . . . . . Garrison Access Hacks . | . . . . . . . Unauthorized Hacks 6 | . 4 . 2 . . . Terminals 6 | . 4 . 2 . . . Track 6 | . 4 . 2 . . . Fabricators . | . . . . . . . Repair Stations . | . . . . . . . Recycling Units . | . . . . . . . Scanalyzers . | . . . . . . . Garrison Access . | . . . . . . . Data Cores Recovered . | . . . . . . . Used . | . . . . . . . Hacking Detections 5 | . 3 . 2 . . . Full Trace Events . | . . . . . . . Feedback Events . | . . . . . . . Feedback Blocked . | . . . . . . . Robot Schematics Acquired . | . . . . . . . Robots Built . | . . . . . . . Matter . | . . . . . . . Time . | . . . . . . . Total Robot Build Rating . | . . . . . . . Part Schematics Acquired 1 | . 1 . . . . . Parts Built . | . . . . . . . Matter . | . . . . . . . Time . | . . . . . . . Total Part Build Rating . | . . . . . . . Parts Repaired . | . . . . . . . Time . | . . . . . . . Parts Recycled . | . . . . . . . Recycled Matter . | . . . . . . . Retrieved Matter . | . . . . . . . Retrieved Components . | . . . . . . . Parts Scanalyzed . | . . . . . . . Part Schematics Acquired . | . . . . . . . Parts Damaged . | . . . . . . . Bothacking | -11 -10 -10 -9 -9 -9 -8 ------------ Run | Scr Mat Min Mat Min Exi Min Used RIF Installer . | . . . . . . . Robots Hacked . | . . . . . . . Non-combat . | . . . . . . . Combat . | . . . . . . . Robot Hacks Applied . | . . . . . . . Relay Couplers Released . | . . . . . . . Robots Rewired . | . . . . . . . Allies Hacked . | . . . . . . . Hacks Repelled . | . . . . . . . Allies | -11 -10 -10 -9 -9 -9 -8 -------- Run | Scr Mat Min Mat Min Exi Min Total Allies . | . . . . . . . Largest Group . | . . . . . . . Highest-Rated Group . | . . . . . . . Highest-Rated Ally . | . . . . . . . Total Orders . | . . . . . . . Ally Attacks . | . . . . . . . Total Damage . | . . . . . . . Kills . | . . . . . . . Allies Corrupted . | . . . . . . . Allies Melted . | . . . . . . . Intel | -11 -10 -10 -9 -9 -9 -8 ------- Run | Scr Mat Min Mat Min Exi Min Robot Analysis Total 3 | . 2 . 1 . . . Derelict Logs Recovered 1 | . . 1 . . . . Drone Launches . | . . . . . . . Drone Recoveries . | . . . . . . . Exploration | -11 -10 -10 -9 -9 -9 -8 ------------- Run | Scr Mat Min Mat Min Exi Min Turns Passed 4973 | 72 877 423 910 165 2083 443 Spaces Moved 2196 | 42 436 217 407 85 947 62 Core 7 | 5 . . . . 2 . Treads 2091 | 37 436 217 407 85 847 62 Legs 98 | . . . . . 98 . Wheels . | . . . . . . . Hover . | . . . . . . . Flight . | . . . . . . . Fastest Speed 50 | 50 160 180 160 180 120 160 Average Speed 174 | 146 165 180 179 180 176 178 Slowest Speed 350 | 160 180 180 180 180 350 180 Overloaded Moves . | . . . . . . . Propulsion Burnouts . | . . . . . . . Robots Hopped . | . . . . . . . Cave-ins Triggered . | . . . . . . . Exploration Rate (%) 40 | 3 83 39 35 19 89 17 Regions Visited 6 Branch Regions 4 Pre-discovered Areas 1 | . . . . . 1 . Known Exits Taken . | . . . . . . . Unknown Exits Taken 6 | 1 1 1 1 1 1 . Scrap Searched 4 | . . 2 . 1 . 1 Spaces Dug 4 | . . . . . 4 . Terrain Destroyed 58 | . . 9 3 3 36 7 Melee . | . . . . . . . Projectile 26 | . . . . . 19 7 AOE 32 | . . 9 3 3 17 . Terrain Rammed . | . . . . . . . Walls Destroyed . | . . . . . . . Machines Disabled . | . . . . . . . Actions | -11 -10 -10 -9 -9 -9 -8 --------- Run | Scr Mat Min Mat Min Exi Min Total 2957 | 49 523 237 529 93 1189 337 Wait 393 | . 21 11 78 2 48 233 Move 2190 | 41 435 216 406 84 946 62 Hop . | . . . . . . . Pick Up 32 | 1 8 2 4 2 15 . Fast Attach 23 | 6 5 . 2 . 9 1 Attach 20 | . 2 . 2 . 13 3 Detach 12 | . 3 . . . 7 2 Swap 26 | 1 4 . 5 2 11 3 Drop 19 | . 7 . 1 . 11 . Fire 219 | . 38 5 30 3 125 18 Melee 19 | . . . . . 4 15 Ram . | . . . . . . . Kick . | . . . . . . . Crush 4 | . . 3 1 . . . Escape Stasis . | . . . . . . . Rewire . | . . . . . . . Trap . | . . . . . . . Miscellaneous . | . . . . . . . Route ------- -11/Scrapyard -10/Materials (discovered 5 exits: *Mat x3 / [*Min x2]) -10/Mines (discovered 2 exits: *Mat x2) -9/Materials -9/Mines -9/Exiles (discovered 2 exits: [*Min x2]) -8/Mines History --------- Turn | Location | Event 23 | -11/Scrapyard | Discovered new exit (range 16) 73 | -11/Scrapyard | Entered Materials 113 | -10/Materials | Discovered new exit (range 14) 254 | -10/Materials | Discovered new exit (range 11) 330 | -10/Materials | Build established: Mutant 490 | -10/Materials | Discovered new exit (range 16) 712 | -10/Materials | Discovered new exit (range 15) 943 | -10/Materials | Discovered new exit (range 5) 950 | -10/Materials | Entered Mines 1037 | -10/Mines | Discovered new exit (range 9) 1051 | -10/Mines | Discovered new exit (range 13) 1373 | -10/Mines | Entered Materials 1373 | -9/Materials | Evolved 2 slots: Utility x2 2132 | -9/Materials | Discovered new exit (range 15) 2203 | -9/Materials | Build established: Scavenger-Mutant 2283 | -9/Materials | Entered Mines 2440 | -9/Mines | Deemed a non-threat by the Exiles lab entrance 2440 | -9/Mines | Discovered new exit (range 5) 2448 | -9/Mines | Entered Exiles 2477 | -9/Exiles | Discovered new exit (range 15) 2497 | -9/Exiles | Met 8R-AWN 2522 | -9/Exiles | Met EX-HEX 2607 | -9/Exiles | Met EX-DEC 2641 | -9/Exiles | Learned location of Zion (-6) 2862 | -9/Exiles | Met EX-BIN 2887 | -9/Exiles | Aligned with FarCom system 2889 | -9/Exiles | Given EX-Vault access code 2934 | -9/Exiles | Opened EX-Vault 2977 | -9/Exiles | Warned to stay clear of 0b10 Research branches 3100 | -9/Exiles | Discovered new exit (range 14) 3532 | -9/Exiles | Attacked by the Exiles 3741 | -9/Exiles | Core integrity fell below 50% 3776 | -9/Exiles | Destroyed 8R-AWN 3790 | -9/Exiles | Found Prototype Ballistic Gun 3790 | -9/Exiles | Identified 8R-AWN's Boregun 3794 | -9/Exiles | Found Prototype Protection 3794 | -9/Exiles | Identified 8R-AWN's Armor/EX 3797 | -9/Exiles | Lost 16 parts (2p4n3u7w) 3850 | -9/Exiles | Found Prototype Processor 4172 | -9/Exiles | Destroyed EX-HEX 4218 | -9/Exiles | Destroyed EX-DEC 4245 | -9/Exiles | Destroyed EX-BIN 4272 | -9/Exiles | Found Prototype Device 4272 | -9/Exiles | Identified System Purifier 4531 | -9/Exiles | Entered Mines 4793 | -8/Mines | P1-3CE came to Exiles' defense 4816 | -8/Mines | Core integrity fell below 20% 4890 | -8/Mines | Destroyed P1-3CE 4910 | -8/Mines | Found Prototype Processor 4910 | -8/Mines | Identified Exp. Targeting Computer (x2) 4974 | -8/Mines | Destroyed self with EMP Blaster Last Messages --------------- 04837_ U-05 Engineer builds a Wall. 04850_ K-01 Serf collects debris. 04860_ P1-3CE Prototype Storage ripped off. 04863_ P1-3CE suffers critical hit. 04869_ Destroyed Disposable Heat Sink. 04890_ P1-3CE destroyed. 04893_ Acquired 120 matter. 04895_ Acquired 4 matter. 04910_ Acquired Prototype Processor. 04910_ Identified Exp. Targeting Computer. 04914_ Discarded Exp. Targeting Computer. 04926_ Acquired 20 matter. 04928_ T-07 Excavator is excavating. 04952_ Searching scrap... 04952_ Found Hacking Suite. 04952_ Found 25 Matter. 04970_ Particle Gun fried. 04970_ G-47 Trooper destroyed. 04972_ Aluminum Leg fried. 04972_ G-47 Trooper destroyed. Map ----- +----------------------------------------------------+ | ?????????????????????????????????????????????????? | | ?????????????????????????????????????????????????? | | ?????????????????????????????????????????????????? | | ????????????????????????????????#????????????????? | | ???????????????????????????????? ???????????????? | | ???????????????????????????????? ???????????????? | | ???????????????????????????????? ???????????????? | | ????????????????????????????????# ???????????????? | | ????????????????????????????????# ???????????????? | | ????????????????????????????????? ???????????????? | | ????????????????????????????????? ???????????????? | | ????????????????????????????????? ##????????####?? | | ????????????????????????????????? !#???????## ##? | | ?????????????????????????????????#!#???????# ## | | ?????????????????????????????????#!#???????# # | | ?????????????????????????????????#%######### | | ?????????????????????????????????#! !!! ! | | ?????????????????###????###??????#!######### | | ????????????????## #???# ???####%#?????###" | | ????????????????# #??# #??## *#%##??????### | | ???????????????## #?# #??# %%=%##???????## | | ??????????????## ## #??# %%%%=##???????# | | ??????????????# # ##### """% #####???# | | ??????????????# """ %== ## | | ???????????????# !% %%=!%! ### | | ????????????????# @####### #####% ???## | | ????????????????# %l#?????### ##??????????? | | ????????????????## %#????????###???????????? | | ?????????????????## ###=#??????????????????????? | | ??????????????????###???# #??????????????????????? | | ????????????????????????# #??????????????????????? | | ????????????????????????# #??????????????????????? | | ????????????????????????# #??????????????????????? | | ???????????????????????? ??????????????????????? | | ???????????????????????? ??????????????????????? | | ???????????????????????? ??????????????????????? | | ???????????????????????? ??????????????????????? | | ????????????????????????"""??????????????????????? | | ????????????????????????"""??????????????????????? | | ?????????????????????????????????????????????????? | | ?????????????????????????????????????????????????? | | ?????????????????????????????????????????????????? | | ?????????????????????????????????????????????????? | | ?????????????????????????????????????????????????? | | ?????????????????????????????????????????????????? | | ?????????????????????????????????????????????????? | | ?????????????????????????????????????????????????? | | ?????????????????????????????????????????????????? | | ?????????????????????????????????????????????????? | | ?????????????????????????????????????????????????? | +----------------------------------------------------+ Best States ------------- Heat Dissipation 35 Energy Generation 15 Energy Capacity 265 Matter Stores 300 Matter Capacity 300 Sight Range 16 Terrain Scan Density 10 Armor Coverage 1000 Resistance: EX 90 Evasion (%) 40 Armor Integrity Analysis 33 Recoil Reduction 2 Item Schematics ----------------- Lrg. Storage Unit | -10/Materials | Hacked Robot Schematics ------------------ None Fabricated ------------ Nothing Alien Tech Used ----------------- None Achievements -------------- None Challenges ------------ None Game ------ Seed WarpIntegrityNanoactuators Manual? 0 Play Time 00:27:29 Cumulative 203.2 hours Start 2021.07.24 @ 17:24:19 End 2021.07.24 @ 17:53:57 Sessions 1 Manual Loads 0 Difficulty Rogue Special Mode None Game No. 263 Rogue 176 Adventurer 87 Explorer 0 Win Type - Total 4 Types 3/0/0/1/0/0/0/0/0 Lore% 69 Gallery% 77 Achievement% 62 Wizard Run 0 Options --------- ASCII 0 Keyboard 1 Movement Numpad Keybinds 0 Fullscreen 1 Font 18/Smallcaps Map View 76x50 Tactical HUD 1 Map Filters NONE Filters NONE Steam 1 RUN: 679d5f71-196e-47ed-b350-0741afc84151